fUSD/lending_fUSD_20251028
["ID","MTS","AMOUNT","RATE_DAILY","PERIOD"]
[392559738,1761665446964,-173.693699,0.000298,31]
[392559739,1761665446973,-151.0,0.000298,31]
[392559740,1761665446983,-151.0,0.000298,31]
[392559741,1761665446992,-151.0,0.000298,31]
[392559742,1761665447002,-151.0,0.000298,31]
[392559743,1761665447011,-151.0,0.000298,31]
[392559744,1761665447020,-151.0,0.000298,31]
[392559745,1761665447031,-151.0,0.000298,15]
[392559746,1761665447040,-158.998229,0.000298,31]
[392559747,1761665447050,-270.70402443,0.000298,31]
[392559748,1761665447059,-151.0,0.000298,31]
[392559749,1761665447069,-151.0,0.000298,31]
[392559750,1761665447078,-151.0,0.000298,31]
[392559751,1761665447089,-151.0,0.000298,31]
[392559752,1761665447098,-151.0,0.000298,31]
[392559753,1761665447107,-151.0,0.000298,31]
[392559754,1761665447117,-187.216155,0.000298,31]
[392559755,1761665447126,-151.0,0.000298,31]
[392559756,1761665447135,-151.0,0.000298,31]
[392559757,1761665447144,-256.775677,0.000298,31]
[392559758,1761665447153,-153.426762,0.000298,31]
[392559759,1761665447162,-153.426762,0.000298,31]
[392559760,1761665447171,-153.426762,0.000298,31]
[392559761,1761665447182,-153.426762,0.000298,31]
[392559762,1761665447194,-151.0,0.000298,31]
[392559763,1761665447205,-151.0,0.000298,31]
[392559764,1761665447215,-151.0,0.000298,31]
[392559765,1761665447224,-151.0,0.000298,31]
[392559766,1761665447235,-151.0,0.000298,31]
[392559767,1761665447245,-152.14666,0.000298,31]
[392559768,1761665447254,-151.0,0.000298,31]
[392559769,1761665447263,-151.0,0.000298,31]
[392559770,1761665447273,-351.759361,0.000298,31]
[392559771,1761665447282,-151.0,0.000298,31]
[392559772,1761665447292,-351.759361,0.000298,31]
[392559773,1761665447301,-233.594502,0.000298,31]
[392559774,1761665447310,-351.759361,0.000298,31]
[392559775,1761665447320,-351.759361,0.000298,31]
[392559776,1761665447330,-151.0,0.000298,31]
[392559777,1761665447340,-214.775089,0.000298,31]
[392559778,1761665447349,-214.775089,0.000298,31]
[392559779,1761665447358,-151.0,0.000298,31]
[392559780,1761665447367,-214.775089,0.000298,31]
[392559781,1761665447377,-151.0,0.000298,31]
[392559782,1761665447386,-214.775089,0.000298,31]
[392559783,1761665447395,-151.0,0.000298,31]
[392559784,1761665447405,-151.0,0.000298,31]
[392559785,1761665447415,-151.0,0.000298,31]
[392559786,1761665447424,-296.41565,0.000298,31]
[392559787,1761665447434,-152.733342,0.000298,31]
[392559788,1761665447443,-151.0,0.000298,31]
[392559789,1761665447453,-1900.0,0.000298,10]
[392559790,1761665447462,-151.0,0.000298,31]
[392559791,1761665447471,-151.0,0.000298,31]
[392559792,1761665447481,-151.0,0.000298,31]
[392559793,1761665447490,-151.0,0.000298,31]
[392559794,1761665447500,-151.0,0.000298,31]
[392559795,1761665447509,-151.0,0.000298,31]
[392559796,1761665447518,-163.386022,0.000298,31]
[392559797,1761665447529,-151.0,0.000298,31]
[392559798,1761665447539,-159.450922,0.000298,31]
[392559799,1761665447549,-151.0,0.000298,31]
[392559800,1761665447558,-151.0,0.000298,31]
[392559801,1761665447567,-151.0,0.000298,31]
[392559802,1761665447578,-151.0,0.000298,31]
[392559803,1761665447589,-151.0,0.000298,31]
[392559804,1761665447599,-151.0,0.000298,31]
[392559805,1761665447608,-201.792584,0.000298,31]
[392559806,1761665447617,-252.29798,0.000298,31]
[392559807,1761665447628,-201.5646,0.000298,31]
[392559808,1761665447638,-151.0,0.000298,31]
[392559809,1761665447647,-201.5646,0.000298,31]
[392559810,1761665447656,-201.5646,0.000298,31]
[392559811,1761665447666,-151.0,0.000298,31]
[392559812,1761665447678,-201.5646,0.000298,31]
[392559813,1761665447688,-367.827965,0.000298,31]
[392559814,1761665447697,-367.827965,0.000298,31]
[392559815,1761665447710,-367.827965,0.000298,31]
[392559816,1761665447720,-151.0,0.000298,31]
[392559817,1761665447729,-333.4714611,0.000298,2]
[392559818,1761665447740,-367.827965,0.000298,31]
[392559819,1761665447752,-151.0,0.000298,31]
[392559820,1761665447761,-152.937621,0.000298,30]
[392559821,1761665447771,-151.0,0.000298,31]
[392559822,1761665447781,-151.0,0.000298,31]
[392559823,1761665447791,-151.0,0.000298,14]
[392559824,1761665447802,-151.0,0.000298,31]
[392559825,1761665447811,-152.937621,0.000298,30]
[392559826,1761665447820,-151.0,0.000298,14]
[392559827,1761665447830,-152.937621,0.000298,30]
[392559828,1761665447842,-151.0,0.000298,14]
[392559829,1761665447855,-152.937621,0.000298,30]
[392559830,1761665447865,-151.0,0.000298,31]
[392559831,1761665447874,-190.364029,0.000298,31]
[392559832,1761665447885,-11213.80710558,0.00029842,2]
[392559833,1761665447894,-609.84,0.00029843,14]
[392559834,1761665447904,-158.0,0.00029843,5]
[392559835,1761665447914,-151.0,0.00029843,2]
[392559836,1761665447923,-617.40005154,0.00029843,2]
[392559837,1761665447933,-500.0,0.00029873,5]
[392559838,1761665447943,-160.44998381,0.00029873,5]
[392559839,1761665447952,-161.1596466,0.00029873,5]
[392559840,1761665447962,-150.0,0.00029873,5]
[392559841,1761665447972,-1000.0,0.00029889,2]
[392559842,1761665447982,-1000.0,0.00029889,2]
[392559843,1761665447991,-1000.0,0.00029889,2]
[392559844,1761665448000,-1000.0,0.00029889,2]
[392559845,1761665448010,-1000.0,0.00029889,2]
[392559846,1761665448020,-1000.0,0.00029889,2]
[392559847,1761665448030,-1000.0,0.00029889,2]
[392559848,1761665448039,-1000.0,0.00029889,2]
[392559849,1761665448049,-1000.0,0.00029889,2]
[392559850,1761665448060,-845.09192012,0.00029889,2]
[392559851,1761665448069,-150.0,0.0002989,7]
[392559852,1761665448079,-300.0,0.00029899,10]
[392559853,1761665448089,-387.85351644,0.00029899,10]
[392559854,1761665448098,-300.0,0.00029899,10]
[392559855,1761665448107,-666.0,0.00029899,10]
[392559856,1761665448127,-15433.47647402,0.000299,2]
[392559857,1761665448138,-160.53722179,0.000299,2]
[392559858,1761665448148,-980.56509605,0.000299,2]
[392559859,1761665448158,-95898.20018048,0.000299,2]
[392559860,1761665448175,-4963.05,0.000299,2]
[392559861,1761665448230,-161.88525113,0.000299,2]
[392559863,1761665509053,152.0,0.00031,120]
[392559864,1761665549793,200.0,0.00020201,2]
[392559865,1761665591908,500.0,0.00031498,120]
[392559866,1761665595465,1064.44,0.0002882,120]
[392559867,1761665602886,500.0,0.00031498,120]
[392559870,1761665688480,150.5,0.0002989,120]
[392559871,1761665688935,150.5,0.0002988,120]
[392559872,1761665689798,150.5,0.0002987,120]
[392559874,1761665840308,20000.0,0.000315,120]
[392559885,1761666181752,1220.28242064,0.0002959,120]
[392559888,1761666200402,500.0,0.00030098,120]
[392559894,1761666435117,-151.0,0.00026807,2]
[392559895,1761666435139,-150.0,0.00026901,2]
[392559896,1761666435162,-150.0,0.00026901,2]
[392559897,1761666435184,-150.0,0.00026901,2]
[392559898,1761666435205,-150.0,0.00026901,2]
[392559899,1761666435232,-155.18142051,0.00026901,2]
[392559900,1761666435253,-245.57775216,0.00026901,2]
[392559901,1761666435273,-181.65987237,0.00026901,2]
[392559902,1761666435296,-256.0,0.000271,5]
[392559903,1761666435316,-252.66574563,0.00027456,2]
[392559904,1761666435335,-150.0,0.00027512,2]
[392559905,1761666435356,-300.0,0.00027582,2]
[392559906,1761666435377,-150.0,0.00027649,7]
[392559907,1761666435396,-160.0,0.00027654,2]
[392559908,1761666435414,-629.2706065,0.00027872,2]
[392559909,1761666435434,-476.61195222,0.00027881,2]
[392559910,1761666435453,-1000.0,0.000279,2]
[392559911,1761666435473,-400.0,0.00028123,2]
[392559912,1761666435492,-220.0,0.00028123,2]
[392559913,1761666435512,-1200.0,0.00028123,2]
[392559914,1761666435535,-500.0,0.00028123,2]
[392559915,1761666435555,-500.0,0.00028123,2]
[392559916,1761666435579,-500.0,0.00028123,2]
[392559917,1761666435599,-500.0,0.00028123,2]
[392559918,1761666435624,-500.0,0.00028123,2]
[392559919,1761666435862,-168.12836643,0.00028123,2]
[392559920,1761666435888,-500.0,0.00028123,2]
[392559921,1761666435912,-500.0,0.00028123,2]
[392559922,1761666435937,-500.0,0.00028123,2]
[392559923,1761666435961,-468.36716455,0.00028123,2]
[392559924,1761666435980,-28599.39963557,0.00028125,2]
[392559925,1761666435999,-2999.44,0.00028262,2]
[392559926,1761666436023,-168.0,0.00028355,2]
[392559927,1761666436044,-155.54137155,0.00028364,2]
[392559928,1761666436068,-168.0,0.00028371,2]
[392559929,1761666436088,-150.0,0.00028396,7]
[392559930,1761666436107,-500.0,0.00028617,5]
[392559931,1761666436126,-501.57961135,0.00028617,5]
[392559932,1761666436162,-500.0,0.00028617,5]
[392559933,1761666436185,-596.16043482,0.00028617,5]
[392559934,1761666436210,-730.2,0.00028639,2]
[392559935,1761666436233,-200.0,0.00028649,2]
[392559936,1761666436253,-200.0,0.00028649,2]
[392559937,1761666436273,-250.0,0.00028649,2]
[392559938,1761666436294,-250.0,0.00028649,2]
[392559939,1761666436315,-250.0,0.00028649,2]
[392559940,1761666436335,-250.0,0.00028649,2]
[392559941,1761666436355,-500.0,0.00028649,2]
[392559942,1761666436376,-250.0,0.00028649,2]
[392559943,1761666436395,-250.0,0.00028649,2]
[392559944,1761666436416,-500.0,0.00028649,2]
[392559945,1761666436435,-250.0,0.00028649,2]
[392559946,1761666436456,-500.0,0.00028649,2]
[392559947,1761666436476,-250.0,0.00028649,2]
[392559948,1761666436495,-500.0,0.00028649,2]
[392559949,1761666436515,-574.12855637,0.00028649,2]
[392559950,1761666436536,-500.0,0.00028649,2]
[392559951,1761666436556,-250.0,0.00028649,2]
[392559952,1761666436576,-250.0,0.00028649,2]
[392559953,1761666436596,-500.0,0.00028649,2]
[392559954,1761666436616,-500.0,0.00028649,2]
[392559955,1761666436640,-250.0,0.00028649,2]
[392559956,1761666436662,-250.0,0.00028649,2]
[392559957,1761666436682,-277.35679052,0.00028664,2]
[392559958,1761666436703,-550.73383601,0.00028665,2]
[392559959,1761666436724,-322.6107,0.00028666,2]
[392559960,1761666436745,-281.876957,0.00028666,2]
[392559961,1761666436765,-151.0,0.00028666,2]
[392559962,1761666436785,-151.0,0.00028666,2]
[392559963,1761666436806,-151.0,0.00028666,2]
[392559964,1761666436827,-151.0,0.00028666,2]
[392559965,1761666436847,-151.0,0.00028666,2]
[392559966,1761666436875,-151.0,0.00028666,2]
[392559967,1761666436899,-500.0,0.00028666,2]
[392559968,1761666436925,-151.0,0.00028666,2]
[392559969,1761666436947,-500.0,0.00028666,2]
[392559970,1761666436967,-151.0,0.00028666,2]
[392559971,1761666436987,-151.0,0.00028666,2]
[392559972,1761666437007,-500.0,0.00028666,2]
[392559973,1761666437028,-151.0,0.00028666,2]
[392559974,1761666437050,-500.0,0.00028666,2]
[392559975,1761666437070,-500.0,0.00028666,2]
[392559976,1761666437092,-151.0,0.00028666,2]
[392559977,1761666437114,-500.0,0.00028666,2]
[392559978,1761666437137,-500.0,0.00028666,2]
[392559979,1761666437160,-500.0,0.00028666,2]
[392559980,1761666437181,-500.0,0.00028666,2]
[392559981,1761666437202,-500.0,0.00028666,2]
[392559982,1761666437227,-562.58108659,0.00028666,2]
[392559983,1761666437249,-500.0,0.00028666,2]
[392559984,1761666437272,-500.0,0.00028666,2]
[392559985,1761666437295,-250.0,0.00028666,2]
[392559986,1761666437315,-250.0,0.00028666,2]
[392559987,1761666437335,-250.0,0.00028666,2]
[392559988,1761666437357,-250.0,0.00028666,2]
[392559989,1761666437378,-250.0,0.00028666,2]
[392559990,1761666437398,-250.0,0.00028666,2]
[392559991,1761666437417,-250.0,0.00028666,2]
[392559992,1761666437438,-250.0,0.00028666,2]
[392559993,1761666437458,-250.0,0.00028666,2]
[392559994,1761666437476,-250.0,0.00028666,2]
[392559995,1761666437496,-250.0,0.00028666,2]
[392559996,1761666437515,-200.0,0.00028666,2]
[392559997,1761666437546,-500.0,0.00028666,2]
[392559998,1761666437575,-500.0,0.00028666,2]
[392559999,1761666437605,-250.0,0.00028666,2]
[392560000,1761666437634,-250.0,0.00028666,2]
[392560001,1761666437662,-250.0,0.00028666,2]
[392560002,1761666437690,-250.0,0.00028666,2]
[392560003,1761666437717,-250.0,0.00028666,2]
[392560004,1761666437744,-250.0,0.00028666,2]
[392560005,1761666437770,-250.0,0.00028666,2]
[392560006,1761666437798,-250.0,0.00028666,2]
[392560007,1761666437825,-250.0,0.00028666,2]
[392560008,1761666437854,-250.0,0.00028666,2]
[392560009,1761666437881,-250.0,0.00028666,2]
[392560010,1761666437909,-664.64802279,0.00028677,2]
[392560011,1761666437939,-664.6480228,0.00028677,2]
[392560012,1761666437967,-19390.48,0.00028684,2]
[392560013,1761666437996,-168.0,0.00028705,2]
[392560014,1761666438024,-500.0,0.00028745,7]
[392560015,1761666438053,-1000.0,0.000289,2]
[392560016,1761666438079,-459.77085778,0.00029019,7]
[392560017,1761666438102,-1100.0,0.00029019,7]
[392560018,1761666438134,-1081.55883276,0.00029026,2]
[392560023,1761666536389,206.6,0.00031507,120]
[392560025,1761666583849,-171.18,0.00029046,30]
[392560026,1761666583927,-151.0,0.0002988,31]
[392560027,1761666583997,-151.0,0.0002988,31]
[392560028,1761666584066,-151.0,0.0002988,31]
[392560029,1761666584137,-151.0,0.0002988,31]
[392560030,1761666584211,-220.696779,0.0002988,31]
[392560031,1761666584279,-151.0,0.0002988,31]
[392560032,1761666584349,-151.0,0.0002988,31]
[392560033,1761666584412,-151.0,0.0002988,31]
[392560034,1761666584480,-160.201008,0.0002988,31]
[392560035,1761666584548,-151.0,0.0002988,31]
[392560036,1761666584615,-220.696779,0.0002988,31]
[392560037,1761666584685,-151.0,0.0002988,31]
[392560038,1761666584756,-220.696779,0.0002988,31]
[392560039,1761666584827,-220.696779,0.0002988,31]
[392560040,1761666584904,-153.967062,0.0002988,31]
[392560041,1761666584981,-151.0,0.0002988,31]
[392560042,1761666585049,-151.0,0.0002988,31]
[392560043,1761666585112,-151.0,0.0002988,31]
[392560044,1761666585191,-151.0,0.0002988,31]
[392560045,1761666585273,-151.0,0.0002988,31]
[392560046,1761666585349,-151.0,0.0002988,31]
[392560047,1761666585419,-151.0,0.0002988,31]
[392560048,1761666585491,-151.0,0.00029881,31]
[392560049,1761666585562,-151.0,0.00029881,31]
[392560050,1761666585633,-151.0,0.00029881,31]
[392560051,1761666585705,-151.0,0.00029881,31]
[392560052,1761666585779,-151.0,0.00029881,31]
[392560053,1761666585860,-220.696779,0.00029881,31]
[392560054,1761666585930,-220.696779,0.00029881,31]
[392560055,1761666585996,-151.0,0.00029881,31]
[392560056,1761666586056,-151.0,0.00029881,31]
[392560057,1761666586119,-220.696779,0.00029881,31]
[392560058,1761666586189,-220.696779,0.00029881,31]
[392560059,1761666586261,-290.871095,0.00029881,31]
[392560060,1761666586329,-153.31205,0.00029881,31]
[392560061,1761666586396,-151.0,0.00029881,31]
[392560062,1761666586743,-151.0,0.00029881,31]
[392560063,1761666586808,-151.0,0.00029881,31]
[392560064,1761666586876,-151.0,0.00029881,31]
[392560065,1761666586947,-151.0,0.00029881,31]
[392560066,1761666587013,-151.0,0.0002989,31]
[392560067,1761666587077,-151.0,0.0002989,31]
[392560068,1761666587140,-152.394731,0.0002989,31]
[392560069,1761666587204,-151.0,0.0002989,31]
[392560070,1761666587266,-291.16742,0.0002989,31]
[392560071,1761666587329,-161.30887,0.0002989,31]
[392560072,1761666587395,-165.083844,0.0002989,31]
[392560073,1761666587453,-165.083844,0.0002989,31]
[392560074,1761666587514,-151.0,0.0002989,31]
[392560075,1761666587582,-165.083844,0.0002989,31]
[392560076,1761666587643,-165.083844,0.0002989,31]
[392560077,1761666587703,-151.0,0.0002989,31]
[392560078,1761666587767,-912.697164,0.0002989,31]
[392560079,1761666587828,-912.697164,0.0002989,31]
[392560080,1761666587896,-912.697164,0.0002989,31]
[392560081,1761666587961,-912.697164,0.0002989,31]
[392560082,1761666588021,-151.0,0.0002989,31]
[392560083,1761666588084,-151.0,0.0002989,31]
[392560084,1761666588162,-151.0,0.0002989,31]
[392560085,1761666588231,-151.0,0.0002989,31]
[392560086,1761666588297,-151.0,0.0002989,31]
[392560087,1761666588372,-151.0,0.0002989,31]
[392560088,1761666588439,-168.527687,0.0002989,31]
[392560089,1761666588500,-151.0,0.0002989,31]
[392560090,1761666588557,-151.0,0.0002989,31]
[392560091,1761666588617,-180.256674,0.0002989,31]
[392560092,1761666588676,-151.0,0.0002989,31]
[392560093,1761666588734,-272.354026,0.0002989,31]
[392560094,1761666588794,-151.0,0.0002989,31]
[392560095,1761666588852,-151.0,0.0002989,31]
[392560096,1761666588917,-151.0,0.0002989,31]
[392560097,1761666588980,-158.932132,0.0002989,31]
[392560098,1761666589042,-151.0,0.0002989,31]
[392560099,1761666589105,-151.0,0.0002989,31]
[392560100,1761666589173,-151.0,0.0002989,31]
[392560101,1761666589236,-151.0,0.0002989,31]
[392560102,1761666589305,-157.51247,0.0002989,31]
[392560103,1761666589372,-151.0,0.0002989,31]
[392560104,1761666589434,-154.078422,0.0002989,31]
[392560105,1761666589488,-151.0,0.0002989,31]
[392560106,1761666589548,-151.0,0.0002989,31]
[392560107,1761666589610,-243.655608,0.0002989,31]
[392560108,1761666589668,-151.0,0.0002989,31]
[392560109,1761666589744,-153.911094,0.0002989,31]
[392560110,1761666589828,-153.843666,0.0002989,30]
[392560111,1761666589900,-159.102678,0.0002989,31]
[392560112,1761666589965,-159.102678,0.0002989,31]
[392560113,1761666590024,-159.102678,0.0002989,31]
[392560114,1761666590088,-151.0,0.0002989,31]
[392560115,1761666590156,-159.102678,0.0002989,31]
[392560116,1761666590224,-151.0,0.0002989,31]
[392560117,1761666590290,-151.0,0.0002989,31]
[392560118,1761666590356,-167.836799,0.0002989,31]
[392560119,1761666590422,-151.0,0.0002989,31]
[392560120,1761666590483,-167.836799,0.0002989,31]
[392560121,1761666590542,-151.0,0.0002989,31]
[392560122,1761666590604,-167.836799,0.0002989,31]
[392560123,1761666590666,-167.836799,0.0002989,31]
[392560124,1761666590727,-151.0,0.0002989,31]
[392560125,1761666590789,-151.0,0.0002989,31]
[392560126,1761666590854,-151.0,0.0002989,31]
[392560127,1761666590920,-151.0,0.0002989,31]
[392560128,1761666590984,-151.0,0.0002989,31]
[392560129,1761666591043,-151.0,0.0002989,31]
[392560130,1761666591107,-151.0,0.0002989,31]
[392560131,1761666591175,-158.34803,0.0002989,31]
[392560132,1761666591241,-151.0,0.0002989,31]
[392560133,1761666591307,-153.732893,0.0002989,31]
[392560134,1761666591374,-151.0,0.0002989,31]
[392560135,1761666591433,-151.0,0.0002989,31]
[392560136,1761666591493,-151.0,0.0002989,31]
[392560137,1761666591557,-151.0,0.0002989,31]
[392560138,1761666591621,-151.0,0.0002989,31]
[392560139,1761666591681,-151.0,0.0002989,31]
[392560140,1761666591738,-153.922994,0.0002989,31]
[392560141,1761666591796,-151.0,0.0002989,31]
[392560142,1761666591861,-151.0,0.0002989,31]
[392560143,1761666591927,-272.003358,0.0002989,31]
[392560144,1761666591986,-151.0,0.0002989,31]
[392560145,1761666592057,-272.003358,0.0002989,31]
[392560146,1761666592125,-272.003358,0.0002989,31]
[392560147,1761666592190,-272.003358,0.0002989,31]
[392560148,1761666592254,-151.0,0.0002989,31]
[392560149,1761666592315,-151.0,0.0002989,31]
[392560150,1761666592375,-154.698467,0.0002989,31]
[392560151,1761666592437,-151.0,0.0002989,31]
[392560152,1761666592501,-796.229553,0.0002989,31]
[392560153,1761666592563,-796.229553,0.0002989,31]
[392560154,1761666592632,-151.0,0.0002989,31]
[392560155,1761666592700,-221.514363,0.0002989,31]
[392560156,1761666592767,-796.229553,0.0002989,31]
[392560157,1761666592831,-151.0,0.0002989,31]
[392560158,1761666592905,-796.229553,0.0002989,31]
[392560159,1761666592968,-151.0,0.0002989,31]
[392560160,1761666593034,-221.514363,0.0002989,31]
[392560161,1761666593098,-258.538878,0.0002989,31]
[392560162,1761666593167,-151.0,0.0002989,31]
[392560163,1761666593236,-221.514363,0.0002989,31]
[392560164,1761666593308,-160.042833,0.0002989,31]
[392560165,1761666593372,-152.963914,0.0002989,31]
[392560166,1761666593647,-151.0,0.0002989,31]
[392560167,1761666593712,-151.0,0.0002989,31]
[392560168,1761666593773,-221.514363,0.0002989,31]
[392560169,1761666593838,-160.042833,0.0002989,31]
[392560170,1761666593902,-160.042833,0.0002989,31]
[392560171,1761666593966,-154.544694,0.0002989,30]
[392560172,1761666594028,-151.0,0.0002989,31]
[392560173,1761666594090,-160.042833,0.0002989,31]
[392560174,1761666594161,-151.0,0.0002989,31]
[392560175,1761666594230,-151.0,0.0002989,31]
[392560176,1761666594309,-189.667482,0.0002989,30]
[392560177,1761666594382,-189.667482,0.0002989,30]
[392560178,1761666594450,-189.667482,0.0002989,30]
[392560179,1761666594515,-189.667482,0.0002989,30]
[392560180,1761666594579,-151.0,0.0002989,31]
[392560181,1761666594642,-265.476293,0.0002989,31]
[392560182,1761666594707,-151.0,0.0002989,31]
[392560183,1761666594767,-151.0,0.0002989,31]
[392560184,1761666594830,-151.0,0.0002989,31]
[392560185,1761666594897,-220.696779,0.0002989,31]
[392560186,1761666594961,-220.696779,0.0002989,31]
[392560187,1761666595024,-151.0,0.0002989,31]
[392560188,1761666595082,-151.0,0.0002989,31]
[392560189,1761666595147,-220.696779,0.0002989,31]
[392560190,1761666595210,-220.696779,0.0002989,31]
[392560191,1761666595280,-159.757162,0.0002989,31]
[392560192,1761666595346,-151.0,0.0002989,31]
[392560193,1761666595412,-151.0,0.0002989,31]
[392560194,1761666595471,-151.0,0.0002989,31]
[392560195,1761666595533,-151.0,0.0002989,31]
[392560196,1761666595596,-215.191464,0.0002989,31]
[392560197,1761666595662,-151.0,0.0002989,31]
[392560198,1761666595722,-151.0,0.0002989,31]
[392560199,1761666595785,-151.0,0.0002989,31]
[392560200,1761666595856,-291.572362,0.0002989,31]
[392560201,1761666595925,-151.0,0.0002989,31]
[392560202,1761666595994,-151.0,0.0002989,31]
[392560203,1761666596059,-151.0,0.0002989,31]
[392560204,1761666596126,-294.32589419,0.0002989,31]
[392560205,1761666596191,-151.0,0.0002989,31]
[392560206,1761666596260,-152.463802,0.0002989,31]
[392560207,1761666596326,-151.0,0.0002989,31]
[392560208,1761666596392,-151.0,0.0002989,31]
[392560209,1761666596456,-154.459944,0.0002989,31]
[392560210,1761666596521,-151.0,0.0002989,31]
[392560211,1761666596585,-154.829884,0.0002989,31]
[392560212,1761666596659,-151.0,0.0002989,31]
[392560213,1761666596730,-151.0,0.0002989,31]
[392560214,1761666596798,-152.359481,0.0002989,31]
[392560215,1761666596868,-151.0,0.0002989,31]
[392560216,1761666596943,-151.0,0.0002989,31]
[392560217,1761666597015,-151.0,0.0002989,31]
[392560218,1761666597080,-151.0,0.0002989,31]
[392560219,1761666597149,-151.0,0.0002989,31]
[392560220,1761666597221,-185.347716,0.00029891,31]
[392560221,1761666597292,-151.0,0.00029891,31]
[392560222,1761666597360,-256.279211,0.00029891,31]
[392560223,1761666597431,-220.696779,0.00029891,31]
[392560224,1761666597494,-220.696779,0.00029891,31]
[392560225,1761666597554,-220.696779,0.00029891,31]
[392560226,1761666597611,-220.696779,0.00029891,31]
[392560227,1761666597676,-151.0,0.00029891,31]
[392560228,1761666597744,-164.615945,0.00029891,31]
[392560229,1761666597809,-151.0,0.00029891,31]
[392560230,1761666597880,-151.0,0.00029891,31]
[392560231,1761666597947,-151.0,0.00029891,31]
[392560232,1761666598011,-151.0,0.00029891,31]
[392560233,1761666598074,-151.0,0.00029891,31]
[392560234,1761666598136,-157.780969,0.000299,31]
[392560235,1761666598197,-151.0,0.000299,31]
[392560236,1761666598258,-153.572841,0.000299,31]
[392560237,1761666598320,-151.0,0.000299,31]
[392560238,1761666598378,-151.0,0.000299,31]
[392560239,1761666598438,-154.997725,0.000299,31]
[392560240,1761666598494,-151.0,0.000299,31]
[392560241,1761666598551,-151.0,0.000299,31]
[392560242,1761666598607,-151.0,0.000299,31]
[392560243,1761666598665,-151.0,0.000299,31]
[392560244,1761666598720,-155.76148,0.000299,31]
[392560245,1761666598777,-151.0,0.000299,31]
[392560246,1761666598837,-151.0,0.000299,31]
[392560247,1761666598897,-151.0,0.000299,31]
[392560248,1761666598959,-290.845209,0.000299,31]
[392560249,1761666599017,-151.0,0.000299,31]
[392560250,1761666599078,-151.0,0.000299,31]
[392560251,1761666599134,-151.0,0.000299,31]
[392560252,1761666599195,-151.0,0.000299,30]
[392560253,1761666599257,-151.0,0.000299,31]
[392560254,1761666599316,-151.0,0.000299,31]
[392560255,1761666599372,-151.0,0.000299,31]
[392560256,1761666599432,-151.0,0.000299,31]
[392560257,1761666599494,-151.0,0.000299,31]
[392560258,1761666599552,-165.083844,0.000299,31]
[392560259,1761666599610,-165.083844,0.000299,31]
[392560260,1761666599668,-151.0,0.000299,31]
[392560261,1761666599731,-165.083844,0.000299,31]
[392560262,1761666599793,-165.083844,0.000299,31]
[392560263,1761666599864,-151.0,0.000299,31]